fUSD/lending_fUSD_20250226
["ID","MTS","AMOUNT","RATE_DAILY","PERIOD"]
[354494066,1740535841506,-535.18,0.00034772,2]
[354494067,1740535841515,-571.99843232,0.00035,120]
[354494068,1740535841524,-558.80118223,0.00035,120]
[354494069,1740535841533,-673.9,0.0003521,120]
[354494070,1740535841543,-784.08,0.00035475,2]
[354494071,1740535841552,-784.08,0.00035755,2]
[354494072,1740535841561,-2869.11004467,0.00035773,2]
[354494073,1740535841570,-800.0,0.00036035,5]
[354494074,1740535841579,-784.08,0.00036035,2]
[354494075,1740535841589,-784.08,0.00036315,2]
[354494076,1740535841598,-784.08,0.00036595,2]
[354494077,1740535841607,-784.08,0.00036875,2]
[354494078,1740535841616,-535.18,0.00037036,2]
[354494079,1740535841625,-784.08,0.00037155,2]
[354494080,1740535841634,-12327.620201,0.00037317,3]
[354494081,1740535841643,-1872.232,0.00037327,48]
[354494082,1740535841652,-784.08,0.00037435,2]
[354494083,1740535841661,-784.08,0.00037715,2]
[354494084,1740535841671,-150.0,0.00037918,30]
[354494085,1740535841680,-922.31289353,0.00037918,30]
[354494086,1740535841690,-784.08,0.00037995,2]
[354494087,1740535841699,-784.08,0.00038276,2]
[354494088,1740535841708,-4000.0,0.0003837,2]
[354494089,1740535841717,-784.08,0.00038556,2]
[354494090,1740535841726,-784.08,0.00038836,2]
[354494091,1740535841735,-784.08,0.00039116,2]
[354494092,1740535841745,-535.18,0.000393,2]
[354494093,1740535841754,-784.08,0.00039396,2]
[354494094,1740535841764,-248.48534552,0.00039522,5]
[354494095,1740535841774,-2869.11004467,0.00039523,2]
[354494096,1740535841783,-500.0,0.00039573,5]
[354494097,1740535841792,-784.08,0.00039676,2]
[354494098,1740535841801,-259541.48435491,0.00039828,5]
[354494099,1740535841829,-380.8319,0.00039828,5]
[354494100,1740535841840,-288.351,0.00039828,5]
[354494101,1740535841851,-5739.0179254,0.00039828,5]
[354494115,1740535843099,-16317.0032043,0.00039828,5]
[354494116,1740535843110,-676.16000008,0.00039828,5]
[354494117,1740535843192,-479.29985,0.00039828,5]
[354494118,1740535843205,-1653.64498418,0.00039828,5]
[354494119,1740535843272,-1152.9712,0.00039828,5]
[354494120,1740535843286,-15275.11202038,0.00039828,5]
[354494121,1740535843301,-800.069992,0.00039828,5]
[354494122,1740535843324,-6266.8835218,0.00039828,5]
[354494123,1740535843346,-4325.99470946,0.00039828,5]
[354494133,1740535845227,-2557.30008437,0.00039828,5]
[354494134,1740535845250,-798.19146953,0.00039828,5]
[354494135,1740535845261,-1017.6830018,0.00039828,5]
[354494136,1740535845271,-1189.88173211,0.00039828,5]
[354494137,1740535845283,-446.51173508,0.00039828,5]
[354494138,1740535845293,-1209.63370422,0.00039828,5]
[354494139,1740535846129,-228.59332419,0.000202,2]
[354494140,1740535846139,-116439.57112978,0.00039828,5]
[354494141,1740535846149,-12327.620201,0.00039829,3]
[354494142,1740535846158,-152.475946,0.00039839,14]
[354494143,1740535846167,-151.0,0.00039839,14]
[354494144,1740535846176,-151.0,0.00039839,14]
[354494145,1740535846186,-152.611334,0.00039839,14]
[354494146,1740535846195,-158.469692,0.00039839,14]
[354494147,1740535846205,-153.225179,0.00039839,14]
[354494148,1740535846215,-220.201304,0.00039839,14]
[354494149,1740535846224,-220.201304,0.00039839,14]
[354494150,1740535846234,-151.0,0.00039839,14]
[354494151,1740535846244,-151.0,0.00039839,14]
[354494152,1740535846253,-156.768139,0.00039839,14]
[354494153,1740535846262,-155.757622,0.00039839,14]
[354494154,1740535846271,-151.0,0.00039839,14]
[354494155,1740535846281,-151.0,0.00039839,14]
[354494156,1740535846290,-151.0,0.00039839,14]
[354494157,1740535846300,-12327.620201,0.00039839,3]
[354494158,1740535846310,-12368.03660048,0.00039849,120]
[354494159,1740535846319,-151.0,0.00039849,7]
[354494160,1740535846329,-151.0,0.00039849,7]
[354494161,1740535846338,-151.0,0.00039849,7]
[354494162,1740535846347,-151.0,0.00039849,7]
[354494163,1740535846357,-151.0,0.00039849,7]
[354494164,1740535846366,-151.0,0.00039849,7]
[354494165,1740535846375,-151.0,0.00039849,7]
[354494166,1740535846385,-151.0,0.00039849,7]
[354494167,1740535846394,-151.0,0.00039849,7]
[354494168,1740535846404,-151.0,0.00039849,7]
[354494169,1740535846414,-151.0,0.00039849,7]
[354494170,1740535846424,-151.0,0.00039849,7]
[354494171,1740535846434,-151.0,0.00039849,7]
[354494172,1740535846443,-151.0,0.00039849,7]
[354494174,1740535846452,-151.0,0.00039849,7]
[354494175,1740535846461,-151.0,0.00039849,7]
[354494176,1740535846470,-151.0,0.00039849,7]
[354494177,1740535846480,-151.0,0.00039849,7]
[354494178,1740535846489,-151.0,0.00039849,7]
[354494179,1740535846498,-151.0,0.00039849,7]
[354494180,1740535846507,-151.0,0.00039849,7]
[354494181,1740535846517,-151.0,0.00039849,7]
[354494182,1740535846526,-151.0,0.00039849,7]
[354494183,1740535846536,-151.0,0.00039849,7]
[354494185,1740535846546,-151.0,0.00039849,7]
[354494187,1740535846555,-151.0,0.00039849,7]
[354494189,1740535846564,-151.0,0.00039849,7]
[354494190,1740535846573,-151.0,0.00039849,7]
[354494192,1740535846582,-151.0,0.00039849,7]
[354494194,1740535846592,-151.0,0.00039849,7]
[354494196,1740535846602,-151.0,0.00039849,7]
[354494198,1740535846611,-151.0,0.00039849,7]
[354494200,1740535846620,-151.0,0.00039849,7]
[354494202,1740535846629,-151.0,0.00039849,7]
[354494204,1740535846639,-151.0,0.00039849,7]
[354494206,1740535846648,-151.0,0.00039849,7]
[354494208,1740535846657,-151.0,0.00039849,7]
[354494210,1740535846667,-151.0,0.00039849,7]
[354494212,1740535846676,-151.0,0.00039849,7]
[354494214,1740535846685,-151.0,0.00039849,7]
[354494215,1740535846694,-151.0,0.00039849,7]
[354494216,1740535846704,-204.707875,0.00039849,7]
[354494217,1740535846713,-151.0,0.00039849,14]
[354494218,1740535846722,-500.0,0.00039873,5]
[354494219,1740535846731,-1900.0,0.000399,14]
[354494220,1740535846741,-784.08,0.00039956,2]
[354494221,1740535846749,-500.0,0.0004,14]
[354494222,1740535846759,-163.73858155,0.0004,14]
[354494223,1740535846771,-1791.30472765,0.0004,4]
[354494224,1740535846785,-409.96,0.0004,120]
[354494225,1740535846798,-253.04,0.0004,120]
[354494226,1740535846812,-784.08,0.00040236,2]
[354494227,1740535846828,-784.08,0.00040516,2]
[354494228,1740535846843,-152.0,0.00040757,3]
[354494229,1740535846856,-784.08,0.00040796,2]
[354494230,1740535846869,-1260.553,0.00040811,2]
[354494231,1740535846882,-1000.0,0.00041095,120]
[354494232,1740535846894,-1314.56,0.00041096,120]
[354494233,1740535846904,-1000.0,0.00041123,120]
[354494234,1740535846915,-1000.0,0.0004115,120]
[354494235,1740535846930,-1000.0,0.00041178,120]
[354494236,1740535846939,-1000.0,0.00041205,120]
[354494237,1740535846949,-871.04472738,0.00041232,120]
[354494238,1740535846958,-535.18,0.00041564,2]
[354494239,1740535846967,-153.0,0.00041802,2]
[354494240,1740535846977,-12327.620201,0.00041902,4]
[354494241,1740535846986,-154.450517,0.00041912,14]
[354494242,1740535846996,-151.0,0.00041912,14]
[354494243,1740535847008,-151.0,0.00041912,14]
[354494244,1740535847018,-154.187675,0.00041912,14]
[354494245,1740535847028,-434.37061272,0.00042383,7]
[354494246,1740535847038,-161.05626721,0.00042483,17]
[354494247,1740535847048,-166.86,0.00042583,2]
[354494248,1740535847057,-150.0,0.00042669,2]
[354494249,1740535847066,-150.0,0.00042847,2]
[354494250,1740535847075,-150.0,0.00042952,2]
[354494251,1740535847084,-150.0,0.0004297,2]
[354494252,1740535847094,-150.0,0.00043063,2]
[354494253,1740535847103,-150.0,0.00043124,2]
[354494254,1740535847112,-150.0,0.00043261,2]
[354494255,1740535847121,-2869.11004467,0.00043273,15]
[354494256,1740535847130,-150.0,0.00043299,2]
[354494257,1740535847140,-150.0,0.00043355,2]
[354494258,1740535847149,-150.0,0.00043365,2]
[354494259,1740535847158,-150.0,0.00043378,2]
[354494260,1740535847167,-150.0,0.00043395,2]
[354494261,1740535847177,-150.0,0.00043456,2]
[354494262,1740535847186,-434.37061267,0.00043469,11]
[354494263,1740535847195,-150.0,0.00043529,2]
[354494264,1740535847204,-150.0,0.00043534,2]
[354494265,1740535847214,-180.18995538,0.00043681,30]
[354494266,1740535847224,-150.0,0.00043727,2]
[354494267,1740535847234,-1002.79,0.000438,120]
[354494268,1740535847244,-535.18,0.00043828,2]
[354494269,1740535847254,-1000.0,0.00043835,120]
[354494270,1740535847263,-1000.0,0.00043835,120]
[354494271,1740535847273,-1000.0,0.00043835,120]
[354494272,1740535847282,-1062.13449034,0.00043835,120]
[354494273,1740535847291,-150.0,0.00043911,2]
[354494274,1740535847301,-150.0,0.00043957,2]
[354494275,1740535847311,-5929.88116118,0.0004399,4]
[354494276,1740535847324,-4064.83,0.0004399,4]
[354494277,1740535847335,-5062.64641841,0.0004399,4]
[354494278,1740535847346,-1200.0,0.0004399,4]
[354494279,1740535847357,-800.0,0.0004399,4]
[354494280,1740535847368,-1698.30653764,0.0004399,4]
[354494281,1740535847382,-500.0,0.0004399,4]
[354494282,1740535847398,-1965.29726742,0.0004399,4]
[354494283,1740535847424,-228.59332417,0.000354,7]
[354494284,1740535847433,-15761.89921845,0.0004399,4]
[354494285,1740535847442,-76303.0,0.00044,2]
[354494286,1740535847452,-151.479657,0.00044,14]
[354494287,1740535847461,-151.0,0.00044,14]
[354494288,1740535847471,-220.201304,0.00044,14]
[354494289,1740535847481,-220.201304,0.00044,14]
[354494290,1740535847490,-151.0,0.00044,14]
[354494291,1740535847499,-151.407693,0.00044,14]
[354494292,1740535847509,-162.025075,0.00044,14]
[354494293,1740535847519,-151.0,0.00044,14]
[354494294,1740535847529,-151.0,0.00044,14]
[354494295,1740535847539,-153.157647,0.00044,14]
[354494296,1740535847547,-151.0,0.00044,14]
[354494297,1740535847557,-204.632881,0.00044,14]
[354494298,1740535847565,-151.0,0.00044,14]
[354494299,1740535847575,-151.0,0.00044,14]
[354494300,1740535847584,-151.0,0.00044,14]
[354494301,1740535847592,-289.895446,0.00044,14]
[354494302,1740535847601,-289.895446,0.00044,14]
[354494303,1740535847611,-201.082296,0.00044,14]
[354494304,1740535847621,-201.082296,0.00044,14]
[354494305,1740535847630,-151.0,0.00044,14]
[354494306,1740535847639,-154.572522,0.00044,14]
[354494307,1740535847648,-151.0,0.00044,14]
[354494308,1740535847657,-151.256703,0.00044,10]
[354494309,1740535847667,-150.0,0.00044083,2]
[354494310,1740535847677,-150.0,0.00044103,2]
[354494311,1740535847691,-12327.620201,0.00044162,4]
[354494312,1740535847700,-150.0,0.00044168,2]
[354494313,1740535847710,-150.0,0.00044172,2]
[354494314,1740535847719,-2035.981,0.00044172,2]
[354494315,1740535847729,-1280.335,0.00044172,2]
[354494316,1740535847738,-635.994,0.00044172,2]
[354494317,1740535847747,-408.165,0.00044172,2]
[354494318,1740535847757,-1791.361,0.00044172,2]
[354494319,1740535847767,-787.0,0.00044172,2]
[354494320,1740535847777,-1428.975,0.00044172,2]
[354494321,1740535847787,-774.867,0.00044172,2]
[354494322,1740535847796,-540.443,0.00044172,2]
[354494323,1740535847806,-727.597,0.00044172,2]
[354494324,1740535847818,-4047.154,0.00044172,2]
[354494325,1740535847829,-3949.573,0.00044172,2]
[354494326,1740535847838,-291.135,0.00044172,2]
[354494327,1740535847847,-1010.0,0.00044172,2]
[354494328,1740535847856,-150.0,0.00044229,2]
[354494329,1740535847866,-150.0,0.00044251,2]
[354494330,1740535847875,-161.05626721,0.00044298,19]
[354494331,1740535847885,-150.0,0.000443,2]
[354494332,1740535847896,-150.0,0.00044307,2]
[354494333,1740535847906,-150.0,0.00044369,2]
[354494334,1740535847916,-150.0,0.0004442,2]
[354494335,1740535847926,-150.0,0.00044499,2]
[354494336,1740535847936,-434.37061267,0.00044555,16]
[354494337,1740535847946,-152.0,0.00044705,4]
[354494338,1740535847955,-150.0,0.00044705,2]
[354494339,1740535847964,-150.0,0.00044752,2]
[354494340,1740535847972,-12327.620201,0.00044841,4]
[354494341,1740535847982,-150.0,0.00044989,2]
[354494342,1740535847991,-24655.240402,0.0004499,4]
[354494343,1740535848000,-250.3621566,0.00045,14]
[354494344,1740535848010,-31110.88218216,0.00045,120]
[354494345,1740535848478,-710.03784,0.00045,120]
[354494346,1740535848491,-18179.07997784,0.00045,120]
[354494347,1740535848501,-166.31,0.00045,120]
[354494348,1740535848512,-361.77,0.00045,120]
[354494349,1740535848522,-153.077285,0.00045,14]
[354494350,1740535848532,-151.0,0.00045,14]
[354494351,1740535848542,-152.524675,0.00045,14]
[354494352,1740535848553,-151.0,0.00045,14]
[354494353,1740535848563,-151.0,0.00045,14]
[354494354,1740535848573,-151.0,0.00045,14]
[354494355,1740535848583,-151.0,0.00045,14]
[354494356,1740535848592,-437.079072,0.00045,14]
[354494357,1740535848602,-437.079072,0.00045,14]
[354494358,1740535848612,-150.0,0.0004502,2]
[354494359,1740535848622,-150.0,0.00045044,2]
[354494360,1740535848870,-310.69501167,0.00045052,10]
[354494361,1740535848892,-150.0,0.00045072,2]
[354494362,1740535848904,-1060.0,0.00045076,30]
[354494363,1740535848914,-150.0,0.00045105,2]
[354494364,1740535848924,-150.0,0.00045146,2]
[354494365,1740535848933,-150.0,0.0004521,2]
[354494366,1740535848943,-1000.0,0.00045352,10]
[354494367,1740535848952,-150.0,0.00045362,2]
[354494368,1740535848961,-1000.0,0.00045364,14]
[354494369,1740535848971,-156.5,0.00045439,2]
[354494370,1740535848980,-107102.36872032,0.0004549,4]
[354494371,1740536708852,160796.91651191,0.0001,2]
[354494372,1740536720345,319.65726437,9e-05,2]
[354494373,1740536879774,154.52526683,0.00024459,30]
[354494374,1740536919974,7517.20704566,0.00023,30]
[354494390,1740537032294,-220.85247496,0.0001335,2]
[354494392,1740537032304,-150.0,0.0001336,2]
[354494394,1740537032315,-250.0,0.0001336,2]
[354494395,1740537032327,-367.61552504,0.0001337,2]
[354494396,1740537032348,-20248.10029798,0.0001337,2]
[354494397,1740537032414,-21607.96432602,0.0001337,2]
[354494398,1740537032424,-8659.95265689,0.0001345,2]
[354494399,1740537032434,-150.0,0.00013499,2]
[354494400,1740537032445,-250.0,0.00013499,2]
[354494401,1740537032454,-4885.66,0.00013699,2]
[354494402,1740537032463,-4885.66,0.00013699,2]
[354494403,1740537032473,-4885.66,0.00013699,2]
[354494404,1740537032484,-4885.66,0.00013699,2]
[354494405,1740537032498,-4885.66,0.00013699,2]
[354494406,1740537032510,-4885.66,0.00013699,2]
[354494407,1740537032520,-4885.66,0.00013699,2]
[354494408,1740537032531,-4885.66,0.00013699,2]
[354494409,1740537032541,-4885.66,0.00013699,2]
[354494410,1740537032552,-4885.66,0.00013699,2]
[354494411,1740537032561,-4885.66,0.00013699,2]
[354494412,1740537032572,-4885.66,0.00013699,2]
[354494413,1740537032585,-4885.66,0.00013699,2]
[354494414,1740537032597,-4885.66,0.00013699,2]
[354494415,1740537032607,-4885.66,0.00013699,2]
[354494416,1740537032618,-4885.66,0.00013699,2]
[354494417,1740537032627,-4885.66,0.00013699,2]
[354494418,1740537032636,-4885.66,0.00013699,2]
[354494419,1740537032646,-3944.95479387,0.00013699,2]
[354494420,1740537032658,-940.70520613,0.00013699,2]
[354494421,1740537032667,-4885.73945942,0.00013699,2]
[354494422,1740537032676,-559.39780103,0.00013699,2]
[354494423,1740537032685,-6746.75582319,0.000139,2]
[354494424,1740537032694,-9646.0,0.00014,2]
[354494425,1740537032703,-150.0,0.00014685,2]
[354494426,1740537032712,-250.0,0.00014685,2]
[354494427,1740537032721,-1558.7855911,0.0001688,2]
[354494428,1740537032730,-6746.75582317,0.00017611,2]
[354494429,1740537032739,-251.05341648,0.0001764,2]
[354494430,1740537032748,-1123.339,0.00019791,2]
[354494431,1740537032757,-228.59332417,0.000203,2]
[354494432,1740537032765,-6746.75582317,0.00021322,2]
[354494433,1740537032774,-200.0,0.00024459,30]
[354494434,1740537032783,-3726.05445139,0.00025,120]
[354494435,1740537032792,-6746.75582317,0.00025032,2]
[354494436,1740537032801,-166.12275425,0.0002598,10]
[354494437,1740537032810,-6746.75582317,0.00028743,2]
[354494438,1740537032819,-9999.99,0.00031426,2]
[354494439,1740537032828,-6746.75582317,0.00032454,2]
[354494440,1740537032838,-400.75416042,0.00035,5]
[354494441,1740537032848,-6746.75582317,0.00036165,2]
[354494442,1740537032858,-467.1,0.00037172,2]
[354494443,1740537032867,-180.46681702,0.00039,30]
[354494444,1740537032877,-467.1,0.00039436,2]
[354494445,1740537032886,-719.85,0.00039521,2]
[354494446,1740537032895,-6746.75582317,0.00039875,15]
[354494447,1740537032905,-153.0,0.00040633,2]
[354494448,1740537032915,-153.0,0.00040633,2]
[354494449,1740537032924,-153.0,0.00040633,2]
[354494450,1740537032933,-153.0,0.00040633,2]
[354494451,1740537032942,-153.0,0.00040633,2]
[354494452,1740537032951,-1033.26,0.00041095,120]
[354494455,1740537032959,-206.9,0.00041096,120]
[354494457,1740537032968,-200.0,0.00041096,120]
[354494459,1740537032977,-467.1,0.000417,2]
[354494461,1740537032986,-1004.14206608,0.00042,120]
[354494464,1740537032995,-2000.0,0.00042318,120]
[354494467,1740537033004,-1123.339,0.00042344,64]
[354494470,1740537033013,-17589.27237889,0.000425,30]
[354494473,1740537033022,-152.0,0.00043165,3]
[354494476,1740537033031,-23900.0,0.00043279,2]
[354494478,1740537033040,-28309.74,0.00043379,64]
[354494481,1740537033050,-150.0,0.00043419,2]
[354494485,1740537033059,-1000.0,0.0004343,2]
[354494487,1740537033069,-250.0,0.00043465,2]
[354494491,1740537033079,-150.0,0.00043569,2]
[354494493,1740537033088,-6746.75582317,0.00043586,15]
[354494496,1740537033097,-150.0,0.00043632,2]
[354494499,1740537033107,-355.66,0.00043745,2]
[354494502,1740537033116,-150.0,0.00043769,2]
[354494505,1740537033125,-150.0,0.00043819,2]
[354494508,1740537033134,-150.0,0.0004388,2]
[354494511,1740537033143,-467.1,0.00043964,2]
[354494514,1740537033153,-8034.89800457,0.00043987,31]
[354494516,1740537033162,-1664.0,0.00044018,2]
[354494518,1740537033171,-784.0,0.00044018,2]
[354494520,1740537033180,-540.0,0.00044018,2]
[354494522,1740537033191,-1425.0,0.00044018,2]
[354494524,1740537033201,-4034.0,0.00044018,2]
[354494526,1740537033211,-3922.0,0.00044018,2]
[354494527,1740537033220,-641.0,0.00044018,2]
[354494529,1740537033231,-150.0,0.00044116,2]
[354494531,1740537033241,-150.0,0.00044225,2]
[354494533,1740537033251,-150.0,0.00044553,2]
[354494534,1740537033261,-150.0,0.00044584,2]
[354494535,1740537033271,-150.0,0.00044653,2]
[354494536,1740537033280,-150.0,0.00044687,2]
[354494537,1740537033289,-150.0,0.00044698,2]
[354494538,1740537033299,-225.11,0.00044733,2]
[354494539,1740537033308,-150.0,0.00044744,2]
[354494540,1740537033318,-5000.0,0.000448,120]
[354494541,1740537033328,-671.09954777,0.00044877,30]
[354494542,1740537033337,-150.0,0.00044924,2]
[354494544,1740537033346,-150.0,0.00044924,2]
[354494546,1740537033356,-150.0,0.00044945,2]
[354494548,1740537033365,-630.25712,0.0004498,53]
[354494550,1740537033374,-10640.2155038,0.0004499,4]
[354494552,1740537033384,-34412.98,0.00045,120]
[354494554,1740537033394,-3452.91574805,0.0004504,2]
[354494556,1740537033403,-1000.0,0.00045079,14]
[354494558,1740537033412,-508.01344156,0.00045088,14]
[354494560,1740537033422,-671.09954777,0.00045096,30]
[354494562,1740537033431,-150.0,0.00045214,2]
[354494564,1740537033440,-775.19117679,0.00045222,10]
[354494566,1740537033453,-160.00837271,0.00045222,10]
[354494569,1740537033463,-987.7,0.00045233,120]
[354494570,1740537033473,-987.7,0.00045233,120]
[354494573,1740537033483,-814.4,0.00045233,120]
[354494574,1740537033492,-374.36333878,0.00045233,120]
[354494577,1740537033503,-272.47,0.00045233,120]
[354494579,1740537033514,-1328.06666122,0.00045233,120]
[354494581,1740537033523,-987.7,0.00045233,120]
[354494583,1740537033532,-987.7,0.00045233,120]
[354494585,1740537033541,-987.7,0.00045233,120]
[354494587,1740537033550,-987.7,0.00045233,120]
[354494589,1740537033559,-987.7,0.00045233,120]
[354494591,1740537033569,-150.0,0.0004524,2]
[354494593,1740537033578,-1309.38,0.00045267,2]
[354494594,1740537033587,-150.0,0.00045293,2]
[354494597,1740537033598,-671.09954777,0.00045315,30]
[354494599,1740537033607,-286.91100453,0.0004539,15]
[354494601,1740537033616,-1256.23044038,0.00045412,22]
[354494603,1740537033626,-150.0,0.0004549,2]
[354494605,1740537033635,-89287.02466605,0.0004549,4]
[354494611,1740537033688,-4931.61992374,0.0004549,4]
[354494615,1740537033715,-1434.24613958,0.0004549,4]
[354494617,1740537033725,-4381.89421095,0.0004549,4]
[354494619,1740537033737,-1866.44,0.0004549,4]
[354494621,1740537033748,-2033.399527,0.0004549,4]
[354494623,1740537033760,-19461.39972274,0.0004549,4]
[354494626,1740537033771,-1631.28368117,0.0004549,4]
[354494628,1740537033782,-296.06898983,0.0004549,4]
[354494630,1740537033797,-994.31646335,0.0004549,4]
[354494632,1740537033808,-11717.93449313,0.0004549,4]
[354494635,1740537033820,-6432.76997748,0.0004549,4]
[354494637,1740537033831,-35969.3613528,0.0004549,4]
[354494639,1740537033842,-2700.78376205,0.0004549,4]
[354494641,1740537033857,-807.19103229,0.0004549,4]
[354494644,1740537033868,-5188.85335184,0.0004549,4]
[354494646,1740537033879,-10400.60425258,0.0004549,4]
[354494648,1740537033890,-3380.54975671,0.0004549,4]
[354494660,1740537033994,-322.26793109,0.0004549,4]
[354494662,1740537034005,-6289.07,0.0004549,4]
[354494664,1740537034016,-3071.705,0.0004549,4]
[354494666,1740537034028,-205.52584062,0.0004549,4]
[354494668,1740537034037,-232.21274808,0.00045499,120]
[354494671,1740537034047,-3079.51141144,0.000455,7]
[354494673,1740537034059,-2501.25394069,0.000455,7]
[354494675,1740537034071,-293.49962424,0.000455,7]
[354494679,1740537034098,-13419.77785456,0.000455,7]
[354494681,1740537034109,-51103.00814046,0.000455,7]
[354494684,1740537034128,-269.899992,0.000455,7]
[354494686,1740537034139,-580.99624631,0.000455,7]
[354494688,1740537034150,-434.99072129,0.000455,7]
[354494693,1740537034192,-18347.61448783,0.000455,7]
[354495063,1740537038238,-16710.41070131,0.000455,7]
[354495064,1740537038250,-560.05861585,0.000455,7]
[354495065,1740537038264,-5548.8,0.000455,7]
[354495066,1740537038276,-12882.87000009,0.000455,7]
[354495067,1740537038287,-12592.04216613,0.000455,7]
[354495068,1740537038346,-12000.0,0.000455,7]
[354495069,1740537038359,-982.11134826,0.000455,7]
[354495070,1740537038486,-749.9699998,0.000455,7]
[354495071,1740537038498,-653.42257888,0.000455,7]
[354495072,1740537038509,-1034.4284004,0.000455,7]
[354495074,1740537038519,-6320.61948,0.000455,7]
[354495076,1740537038530,-1233.42756601,0.000455,7]
[354495097,1740537038712,-510.35296863,0.000455,7]
[354495099,1740537038723,-2039.62000081,0.000455,7]
[354495293,1740537040749,-683.74589801,0.000455,7]
[354495719,1740537044885,-248.48174749,0.0001335,2]
[354495721,1740537044894,-59.42469202,0.00044018,2]
[354495768,1740537046290,-90.57530798,0.00044018,2]
[354495769,1740537046299,-150.0,0.00044018,2]
[354495770,1740537046308,-37949.79672737,0.000455,7]
[354495771,1740537046319,-51749.28539569,0.000455,7]
[354495772,1740537046392,-1206.00822292,0.000455,7]
[354495773,1740537046404,-58637.07822018,0.000455,7]
[354495774,1740537046460,-4000.0,0.000455,7]
[354495775,1740537046471,-3336.2,0.000455,7]
[354495776,1740537046560,-1000.0,0.000455,7]
[354495777,1740537046571,-102508.03037472,0.000455,7]
[354495778,1740537046581,-153.618804,0.000455,14]
[354495779,1740537046591,-180.974066,0.000455,14]
[354495780,1740537046601,-180.974066,0.000455,14]
[354495781,1740537046610,-152.591076,0.000455,14]
[354495782,1740537046619,-151.0,0.000455,14]
[354495783,1740537046629,-151.0,0.000455,14]
[354495784,1740537046639,-671.09954777,0.00045534,30]
[354495785,1740537046648,-942.08003871,0.00045546,14]
[354495786,1740537046658,-1000.0,0.00045577,14]
[354495787,1740537046667,-258.03381503,0.00045577,14]
[354495788,1740537046676,-150.0,0.00045597,2]
[354495789,1740537046686,-150.0,0.00045601,2]
[354495790,1740537046695,-286.91100446,0.00045602,15]
[354495791,1740537046705,-150.0,0.00045608,2]
[354495792,1740537046714,-150.0,0.00045611,2]
[354495793,1740537046723,-150.0,0.00045612,2]
[354495794,1740537046732,-150.0,0.0004562,2]
[354495795,1740537046742,-1000.0,0.00045623,14]
[354495796,1740537046751,-1309.38,0.00045624,2]
[354495797,1740537046760,-719.5830061,0.00045643,4]
[354495798,1740537046769,-150.0,0.00045696,2]
[354495799,1740537046779,-150.0,0.00045723,120]
[354495800,1740537046788,-1000.0,0.00045726,14]
[354495801,1740537046798,-671.09954777,0.00045753,30]
[354495802,1740537046808,-150.0,0.00045757,2]
[354495803,1740537046817,-150.0,0.00045774,2]
[354495804,1740537046826,-10283.77897518,0.0004579,4]
[354495805,1740537046848,-356.43652862,0.0004579,4]
[354495806,1740537046858,-5000.0,0.000458,120]
[354495807,1740537046867,-900.0,0.000458,16]
[354495808,1740537046877,-1000.0,0.00045808,14]
[354495809,1740537046886,-286.91100446,0.00045814,15]
[354495810,1740537046895,-150.0,0.00045841,2]
[354495811,1740537046905,-150.0,0.00045848,14]
[354495812,1740537046914,-150.0,0.00045879,2]
[354495813,1740537046923,-150.0,0.00045885,2]
[354495814,1740537046932,-190.71182066,0.000459,120]
[354495815,1740537046940,-190.71182066,0.000459,120]